[Event "Late-Titled-Tuesday-Blitz-May-28-2024"]
[Site "Chess.com"]
[Date "2024.05.28"]
[Round "6"]
[White "Dolphin_2010"]
[Black "baki83"]
[Result "1-0"]
[WhiteElo "2761"]
[BlackElo "2918"]
[TimeControl "180+1"]
[EndTime "15:07:09 PDT"]
[Termination "Dolphin_2010 won by checkmate"]

1. d4 {[%clk 0:03:00.9]} 1... Nf6 {[%clk 0:02:58.8]} 2. Bg5 {[%clk 0:02:52.8]}
2... Ne4 {[%clk 0:02:57]} 3. Bf4 {[%clk 0:02:52.8]} 3... d5 {[%clk 0:02:56.3]}
4. Nd2 {[%clk 0:02:52.1]} 4... Nd6 {[%clk 0:02:55.2]} 5. e3 {[%clk 0:02:51.6]}
5... Bf5 {[%clk 0:02:53.8]} 6. Ngf3 {[%clk 0:02:51.8]} 6... e6 {[%clk
0:02:53.9]} 7. c4 {[%clk 0:02:51.4]} 7... c6 {[%clk 0:02:53.9]} 8. a3 {[%clk
0:02:49.8]} 8... Be7 {[%clk 0:02:54.1]} 9. c5 {[%clk 0:02:42.2]} 9... Ne4 {[%clk
0:02:47.3]} 10. Nxe4 {[%clk 0:02:42.2]} 10... Bxe4 {[%clk 0:02:47.2]} 11. Nd2
{[%clk 0:02:42.8]} 11... Bg6 {[%clk 0:02:46.7]} 12. b4 {[%clk 0:02:43.2]} 12...
O-O {[%clk 0:02:31.3]} 13. Be2 {[%clk 0:02:43.5]} 13... Nd7 {[%clk 0:02:23.8]}
14. O-O {[%clk 0:02:43]} 14... Re8 {[%clk 0:02:17]} 15. Bg3 {[%clk 0:01:54.2]}
15... a5 {[%clk 0:02:10.5]} 16. b5 {[%clk 0:01:45.1]} 16... e5 {[%clk
0:02:10.3]} 17. Nf3 {[%clk 0:01:37.9]} 17... exd4 {[%clk 0:02:02.1]} 18. exd4
{[%clk 0:01:30.2]} 18... Bf6 {[%clk 0:01:51.1]} 19. Re1 {[%clk 0:01:29.2]} 19...
Be4 {[%clk 0:01:28.9]} 20. Bf1 {[%clk 0:00:54.4]} 20... Bxf3 {[%clk 0:01:19.9]}
21. Rxe8+ {[%clk 0:00:55.3]} 21... Qxe8 {[%clk 0:01:19.6]} 22. gxf3 {[%clk
0:00:56.2]} 22... Nf8 {[%clk 0:01:14.5]} 23. Qa4 {[%clk 0:00:47.4]} 23... Ne6
{[%clk 0:01:13.8]} 24. Rd1 {[%clk 0:00:47.5]} 24... h5 {[%clk 0:01:08.5]} 25.
Bd6 {[%clk 0:00:20.7]} 25... g6 {[%clk 0:00:58]} 26. f4 {[%clk 0:00:19.4]} 26...
Ng7 {[%clk 0:00:42.5]} 27. Bd3 {[%clk 0:00:15.4]} 27... Qd7 {[%clk 0:00:34.4]}
28. f3 {[%clk 0:00:03.6]} 28... Ne6 {[%clk 0:00:20.6]} 29. Kg2 {[%clk
0:00:02.2]} 29... Nxd4 {[%clk 0:00:16.7]} 30. bxc6 {[%clk 0:00:02.4]} 30... bxc6
{[%clk 0:00:16.2]} 31. Bb1 {[%clk 0:00:01.4]} 31... Nb5 {[%clk 0:00:10.2]} 32.
f5 {[%clk 0:00:02]} 32... Nc3 {[%clk 0:00:10.2]} 33. Qc2 {[%clk 0:00:01]} 33...
Nxd1 {[%clk 0:00:09.6]} 34. Qxd1 {[%clk 0:00:01.9]} 34... g5 {[%clk 0:00:09.2]}
35. h4 {[%clk 0:00:01.7]} 35... Re8 {[%clk 0:00:07.5]} 36. hxg5 {[%clk
0:00:01.8]} 36... Bxg5 {[%clk 0:00:08]} 37. f4 {[%clk 0:00:02.7]} 37... Bf6
{[%clk 0:00:07.8]} 38. Qxh5 {[%clk 0:00:03]} 38... Bg7 {[%clk 0:00:02.9]} 39. f6
{[%clk 0:00:02.8]} 39... Bxf6 {[%clk 0:00:02.9]} 40. Qh7# {[%clk 0:00:02.8]} 1-0

[Event "Late-Titled-Tuesday-Blitz-May-28-2024"]
[Site "Chess.com"]
[Date "2024.05.28"]
[Round "6"]
[White "RobertJFischer71"]
[Black "Romadk"]
[Result "1-0"]
[WhiteElo "2664"]
[BlackElo "2465"]
[TimeControl "180+1"]
[EndTime "15:07:09 PDT"]
[Termination "RobertJFischer71 won by checkmate"]

1. e4 {[%clk 0:03:00.9]} 1... Nf6 {[%clk 0:02:58.6]} 2. e5 {[%clk 0:03:00.7]}
2... Nd5 {[%clk 0:02:59]} 3. d4 {[%clk 0:03:01.5]} 3... d6 {[%clk 0:02:59.4]} 4.
Nf3 {[%clk 0:03:01.8]} 4... g6 {[%clk 0:02:59.5]} 5. Bc4 {[%clk 0:03:01]} 5...
Nb6 {[%clk 0:02:59.6]} 6. Bb3 {[%clk 0:03:01.5]} 6... Bg7 {[%clk 0:02:59.8]} 7.
Ng5 {[%clk 0:03:02]} 7... e6 {[%clk 0:02:58.9]} 8. Qf3 {[%clk 0:03:01.3]} 8...
Qe7 {[%clk 0:02:58.5]} 9. Ne4 {[%clk 0:02:59.8]} 9... dxe5 {[%clk 0:02:57.5]}
10. Bg5 {[%clk 0:02:59.4]} 10... Qb4+ {[%clk 0:02:24.5]} 11. c3 {[%clk 0:02:59]}
11... Qa5 {[%clk 0:02:23.4]} 12. Bf6 {[%clk 0:02:56.3]} 12... O-O {[%clk
0:02:11.1]} 13. Bxg7 {[%clk 0:02:56.7]} 13... Kxg7 {[%clk 0:02:11]} 14. Qf6+
{[%clk 0:02:57.6]} 14... Kg8 {[%clk 0:02:11]} 15. Qxe5 {[%clk 0:02:58.5]} 15...
Qxe5 {[%clk 0:02:09.5]} 16. dxe5 {[%clk 0:02:59.4]} 16... Nc6 {[%clk 0:02:06]}
17. f4 {[%clk 0:02:59.5]} 17... Na5 {[%clk 0:02:02.2]} 18. Nbd2 {[%clk
0:02:54.8]} 18... Nxb3 {[%clk 0:02:01.5]} 19. axb3 {[%clk 0:02:55.4]} 19... Bd7
{[%clk 0:01:59.1]} 20. Ke2 {[%clk 0:02:45.2]} 20... Bc6 {[%clk 0:01:56.4]} 21.
Rhd1 {[%clk 0:02:44.7]} 21... Kg7 {[%clk 0:01:54.1]} 22. g3 {[%clk 0:02:44.4]}
22... a6 {[%clk 0:01:50.7]} 23. Nf6 {[%clk 0:02:28.5]} 23... Rfd8 {[%clk
0:01:41.8]} 24. Nf1 {[%clk 0:02:19.6]} 24... Nd5 {[%clk 0:01:29]} 25. Nxd5
{[%clk 0:02:19]} 25... Rxd5 {[%clk 0:01:29.4]} 26. Ne3 {[%clk 0:02:14]} 26...
Rdd8 {[%clk 0:01:24.5]} 27. Ng4 {[%clk 0:02:03.9]} 27... h6 {[%clk 0:00:55.2]}
28. Nf6 {[%clk 0:02:02]} 28... h5 {[%clk 0:00:48.9]} 29. Ke3 {[%clk 0:02:01.5]}
29... Kf8 {[%clk 0:00:45.2]} 30. Rxd8+ {[%clk 0:01:31.6]} 30... Rxd8 {[%clk
0:00:44.6]} 31. Rg1 {[%clk 0:01:32.3]} 31... Ke7 {[%clk 0:00:41.2]} 32. h3
{[%clk 0:01:09.9]} 32... a5 {[%clk 0:00:40.7]} 33. g4 {[%clk 0:00:59.6]} 33...
hxg4 {[%clk 0:00:41.6]} 34. hxg4 {[%clk 0:01:00.4]} 34... Rh8 {[%clk 0:00:37.5]}
35. Ra1 {[%clk 0:00:59.5]} 35... Rh3+ {[%clk 0:00:32.7]} 36. Kd4 {[%clk
0:00:59.4]} 36... Rf3 {[%clk 0:00:25]} 37. Rxa5 {[%clk 0:00:51.3]} 37... Rxf4+
{[%clk 0:00:25]} 38. Ke3 {[%clk 0:00:46.7]} 38... Rf3+ {[%clk 0:00:24.9]} 39.
Ke2 {[%clk 0:00:47.2]} 39... Rh3 {[%clk 0:00:22.7]} 40. Ra8 {[%clk 0:00:43.2]}
40... Rh2+ {[%clk 0:00:22.7]} 41. Kd3 {[%clk 0:00:42.9]} 41... Rxb2 {[%clk
0:00:21.8]} 42. Ng8+ {[%clk 0:00:35.8]} 42... Kd7 {[%clk 0:00:21.2]} 43. Rf8
{[%clk 0:00:31.1]} 43... Rf2 {[%clk 0:00:19.7]} 44. Nf6+ {[%clk 0:00:29.5]}
44... Ke7 {[%clk 0:00:19.5]} 45. Rc8 {[%clk 0:00:29.9]} 45... Rf3+ {[%clk
0:00:16.5]} 46. Kc4 {[%clk 0:00:27.4]} 46... Bd5+ {[%clk 0:00:16.3]} 47. Kb4
{[%clk 0:00:24.8]} 47... c6 {[%clk 0:00:08.3]} 48. Re8# {[%clk 0:00:23.7]} 1-0

[Event "Late-Titled-Tuesday-Blitz-May-28-2024"]
[Site "Chess.com"]
[Date "2024.05.28"]
[Round "6"]
[White "Alphafischer2019"]
[Black "FuenfgegenWilly"]
[Result "0-1"]
[WhiteElo "2650"]
[BlackElo "2483"]
[TimeControl "180+1"]
[EndTime "15:07:12 PDT"]
[Termination "FuenfgegenWilly won by resignation"]

1. Nf3 {[%clk 0:03:00.9]} 1... f5 {[%clk 0:02:51]} 2. d4 {[%clk 0:02:58.5]} 2...
Nf6 {[%clk 0:02:49.6]} 3. Bf4 {[%clk 0:02:58.9]} 3... e6 {[%clk 0:02:49.4]} 4.
e3 {[%clk 0:02:59]} 4... b6 {[%clk 0:02:46.1]} 5. Nbd2 {[%clk 0:02:50.7]} 5...
Bb7 {[%clk 0:02:46.2]} 6. Bd3 {[%clk 0:02:51.1]} 6... Be7 {[%clk 0:02:45.2]} 7.
O-O {[%clk 0:02:51.1]} 7... O-O {[%clk 0:02:44.9]} 8. Re1 {[%clk 0:02:51]} 8...
Ne4 {[%clk 0:02:44.4]} 9. h3 {[%clk 0:02:49.8]} 9... d6 {[%clk 0:02:43.9]} 10.
Bh2 {[%clk 0:02:47.6]} 10... Nd7 {[%clk 0:02:43.9]} 11. c4 {[%clk 0:02:45.4]}
11... Ndf6 {[%clk 0:02:43.7]} 12. Qc2 {[%clk 0:02:44.6]} 12... c5 {[%clk
0:02:30.1]} 13. Rad1 {[%clk 0:02:32.2]} 13... Qe8 {[%clk 0:02:23.7]} 14. d5
{[%clk 0:02:15.3]} 14... exd5 {[%clk 0:02:12.8]} 15. cxd5 {[%clk 0:02:14.8]}
15... Bxd5 {[%clk 0:02:10]} 16. Bc4 {[%clk 0:01:49.8]} 16... Bxc4 {[%clk
0:02:04.3]} 17. Nxc4 {[%clk 0:01:48.9]} 17... d5 {[%clk 0:02:04.1]} 18. Nce5
{[%clk 0:01:48.7]} 18... Rd8 {[%clk 0:01:59.2]} 19. Qb3 {[%clk 0:01:45.4]} 19...
Kh8 {[%clk 0:01:56.5]} 20. Qa3 {[%clk 0:01:26.8]} 20... a5 {[%clk 0:01:50.4]}
21. Qb3 {[%clk 0:01:25.6]} 21... b5 {[%clk 0:01:49.5]} 22. Qa3 {[%clk
0:01:25.5]} 22... a4 {[%clk 0:01:47.1]} 23. b3 {[%clk 0:01:24.4]} 23... Ra8
{[%clk 0:01:41.7]} 24. bxa4 {[%clk 0:01:22.5]} 24... Rxa4 {[%clk 0:01:40.3]} 25.
Qb2 {[%clk 0:01:21.5]} 25... b4 {[%clk 0:01:36.6]} 26. Nd3 {[%clk 0:01:14.9]}
26... Nc3 {[%clk 0:01:32]} 27. Ra1 {[%clk 0:01:14.5]} 27... Nfe4 {[%clk
0:01:27.5]} 28. a3 {[%clk 0:01:09.1]} 28... bxa3 {[%clk 0:01:17.4]} 29. Qb7
{[%clk 0:00:34.3]} 29... a2 {[%clk 0:01:05.3]} 30. Be5 {[%clk 0:00:33.2]} 30...
c4 {[%clk 0:01:01.1]} 31. Nf4 {[%clk 0:00:28.2]} 31... Rb4 {[%clk 0:00:55.2]}
32. Qa7 {[%clk 0:00:20.8]} 32... Rf7 {[%clk 0:00:45]} 33. Qd4 {[%clk 0:00:13.2]}
33... Bc5 {[%clk 0:00:42.5]} 34. Qxc3 {[%clk 0:00:02.2]} 34... Nxc3 {[%clk
0:00:40.2]} 35. Bxc3 {[%clk 0:00:03.1]} 35... Rb3 {[%clk 0:00:36.6]} 36. Be5
{[%clk 0:00:02.5]} 36... Ra7 {[%clk 0:00:32.7]} 37. Nxd5 {[%clk 0:00:02.1]}
37... Qb5 {[%clk 0:00:28]} 38. Nc3 {[%clk 0:00:02]} 38... Qb7 {[%clk 0:00:26.2]}
39. Nd2 {[%clk 0:00:01.4]} 39... Rb2 {[%clk 0:00:25.4]} 40. Nxc4 {[%clk
0:00:01.8]} 40... Rc2 {[%clk 0:00:24.9]} 41. Nd6 {[%clk 0:00:01.6]} 41... Bxd6
{[%clk 0:00:24]} 42. Bxd6 {[%clk 0:00:02.2]} 42... Rxc3 {[%clk 0:00:24.5]} 43.
Be5 {[%clk 0:00:02.8]} 43... Rb3 {[%clk 0:00:24.1]} 44. Red1 {[%clk 0:00:03.6]}
44... Rb1 {[%clk 0:00:20.8]} 45. Kh2 {[%clk 0:00:04.1]} 45... Rxd1 {[%clk
0:00:20.5]} 46. Rxd1 {[%clk 0:00:05]} 46... h6 {[%clk 0:00:21]} 47. Rd8+ {[%clk
0:00:05.7]} 47... Kh7 {[%clk 0:00:21.2]} 48. Ba1 {[%clk 0:00:06.3]} 48... Qc7+
{[%clk 0:00:20]} 0-1

[Event "Late-Titled-Tuesday-Blitz-May-28-2024"]
[Site "Chess.com"]
[Date "2024.05.28"]
[Round "6"]
[White "David_ATM"]
[Black "luca_va99"]
[Result "1-0"]
[WhiteElo "2413"]
[BlackElo "2169"]
[TimeControl "180+1"]
[EndTime "15:07:13 PDT"]
[Termination "David_ATM won on time"]

1. e4 {[%clk 0:03:00.9]} 1... d5 {[%clk 0:02:59.2]} 2. exd5 {[%clk 0:03:00.9]}
2... Qxd5 {[%clk 0:03:00.1]} 3. Qf3 {[%clk 0:03:00.5]} 3... Qxf3 {[%clk
0:02:58.8]} 4. Nxf3 {[%clk 0:03:01.4]} 4... Nf6 {[%clk 0:02:59.3]} 5. Bc4 {[%clk
0:03:00.9]} 5... Nc6 {[%clk 0:02:55.9]} 6. d4 {[%clk 0:02:57.6]} 6... Bg4 {[%clk
0:02:55.7]} 7. c3 {[%clk 0:02:57.2]} 7... Bxf3 {[%clk 0:02:54.2]} 8. gxf3 {[%clk
0:02:58.1]} 8... e6 {[%clk 0:02:52.6]} 9. Nd2 {[%clk 0:02:56.6]} 9... O-O-O
{[%clk 0:02:51.2]} 10. Ne4 {[%clk 0:02:56.9]} 10... Be7 {[%clk 0:02:46.4]} 11.
Rg1 {[%clk 0:02:54.5]} 11... g6 {[%clk 0:02:46.2]} 12. a4 {[%clk 0:02:43.4]}
12... Nd5 {[%clk 0:02:45.4]} 13. a5 {[%clk 0:02:42.4]} 13... a6 {[%clk
0:02:45.6]} 14. b4 {[%clk 0:02:39.9]} 14... f5 {[%clk 0:02:28.3]} 15. Bxd5
{[%clk 0:02:39.5]} 15... exd5 {[%clk 0:02:26.9]} 16. Ng3 {[%clk 0:02:05.2]}
16... Rde8 {[%clk 0:02:25]} 17. Kd1 {[%clk 0:02:04.7]} 17... Bd6 {[%clk
0:02:24.4]} 18. Bd2 {[%clk 0:01:52.5]} 18... h5 {[%clk 0:02:18.3]} 19. f4 {[%clk
0:01:41.2]} 19... g5 {[%clk 0:01:02]} 20. fxg5 {[%clk 0:01:28.4]} 20... h4
{[%clk 0:01:01.7]} 21. Nxf5 {[%clk 0:01:23.6]} 21... Bxh2 {[%clk 0:01:02.2]} 22.
Rh1 {[%clk 0:01:23.9]} 22... Ref8 {[%clk 0:00:48.8]} 23. Rxh2 {[%clk 0:01:13.4]}
23... Rxf5 {[%clk 0:00:48.2]} 24. f4 {[%clk 0:00:56.1]} 24... Nd8 {[%clk
0:00:37]} 25. Kc2 {[%clk 0:00:54.8]} 25... Ne6 {[%clk 0:00:37.3]} 26. Rah1
{[%clk 0:00:49.2]} 26... Rhf8 {[%clk 0:00:18.6]} 27. Rxh4 {[%clk 0:00:39.9]}
27... Nxf4 {[%clk 0:00:18.6]} 28. Bxf4 {[%clk 0:00:29.9]} 28... Rxf4 {[%clk
0:00:19.5]} 29. Rxf4 {[%clk 0:00:30.4]} 29... Rxf4 {[%clk 0:00:20.4]} 30. Rg1
{[%clk 0:00:31.1]} 30... Rf7 {[%clk 0:00:20.5]} 31. g6 {[%clk 0:00:30.9]} 31...
Rg7 {[%clk 0:00:21]} 32. Kd3 {[%clk 0:00:30.5]} 32... Kd7 {[%clk 0:00:21.2]} 33.
Ke3 {[%clk 0:00:31.1]} 33... Ke6 {[%clk 0:00:21.6]} 34. Kf4 {[%clk 0:00:30.5]}
34... Kf6 {[%clk 0:00:21.3]} 35. Rg5 {[%clk 0:00:31.1]} 35... c6 {[%clk
0:00:21.1]} 36. Rf5+ {[%clk 0:00:29.4]} 36... Ke6 {[%clk 0:00:14.9]} 37. Kg5
{[%clk 0:00:26.2]} 37... Rg8 {[%clk 0:00:06.9]} 38. Re5+ {[%clk 0:00:25.1]}
38... Kd6 {[%clk 0:00:06.1]} 39. Kh6 {[%clk 0:00:24.7]} 39... Rh8+ {[%clk
0:00:04.9]} 40. Kg7 {[%clk 0:00:25.2]} 40... Rh3 {[%clk 0:00:04.9]} 41. Kf7
{[%clk 0:00:24.3]} 41... Rf3+ {[%clk 0:00:05]} 42. Kg8 {[%clk 0:00:21.1]} 42...
Rxc3 {[%clk 0:00:03.6]} 43. g7 {[%clk 0:00:21.2]} 43... Rf3 {[%clk 0:00:02.5]}
44. Rg5 {[%clk 0:00:18]} 44... Ke7 {[%clk 0:00:01.9]} 45. Kh7 {[%clk 0:00:17.2]}
45... Rh3+ {[%clk 0:00:02]} 46. Kg6 {[%clk 0:00:17.4]} 1-0

[Event "Late-Titled-Tuesday-Blitz-May-28-2024"]
[Site "Chess.com"]
[Date "2024.05.28"]
[Round "6"]
[White "yobdc"]
[Black "GianmarcoVaR"]
[Result "1-0"]
[WhiteElo "2547"]
[BlackElo "2705"]
[TimeControl "180+1"]
[EndTime "15:07:19 PDT"]
[Termination "yobdc won by resignation"]

1. e4 {[%clk 0:03:00.9]} 1... c5 {[%clk 0:02:57.5]} 2. Nf3 {[%clk 0:03:00.7]}
2... d6 {[%clk 0:02:57.6]} 3. d4 {[%clk 0:02:57.8]} 3... cxd4 {[%clk 0:02:53.3]}
4. Nxd4 {[%clk 0:02:58.1]} 4... Nf6 {[%clk 0:02:54]} 5. Bc4 {[%clk 0:02:58.3]}
5... e6 {[%clk 0:02:41.8]} 6. Bd3 {[%clk 0:02:57.9]} 6... Nc6 {[%clk 0:02:36.4]}
7. Nxc6 {[%clk 0:02:57.5]} 7... bxc6 {[%clk 0:02:36.8]} 8. O-O {[%clk
0:02:57.7]} 8... Be7 {[%clk 0:02:33.7]} 9. b3 {[%clk 0:02:54.4]} 9... O-O {[%clk
0:02:31.2]} 10. Bb2 {[%clk 0:02:54.7]} 10... e5 {[%clk 0:02:29.1]} 11. Nd2
{[%clk 0:02:51.1]} 11... Be6 {[%clk 0:02:25.2]} 12. Qe2 {[%clk 0:02:42.4]} 12...
Qc7 {[%clk 0:02:21.1]} 13. f4 {[%clk 0:02:41.3]} 13... exf4 {[%clk 0:02:18.5]}
14. Rxf4 {[%clk 0:02:39.6]} 14... Nd7 {[%clk 0:02:17.7]} 15. Raf1 {[%clk
0:02:20.5]} 15... Ne5 {[%clk 0:02:15.7]} 16. Nc4 {[%clk 0:01:49.4]} 16... a5
{[%clk 0:02:08.4]} 17. a4 {[%clk 0:01:33.3]} 17... Bg5 {[%clk 0:01:57.6]} 18.
R4f2 {[%clk 0:01:21.5]} 18... Bg4 {[%clk 0:01:50]} 19. Qe1 {[%clk 0:01:18.4]}
19... Bh4 {[%clk 0:01:17.7]} 20. g3 {[%clk 0:01:14.3]} 20... Bg5 {[%clk
0:01:15.8]} 21. h4 {[%clk 0:00:58.3]} 21... Bh6 {[%clk 0:01:05.6]} 22. Nxe5
{[%clk 0:00:51.2]} 22... dxe5 {[%clk 0:01:05.6]} 23. Bc4 {[%clk 0:00:51.6]}
23... Be6 {[%clk 0:00:01.9]} 24. Bxe6 {[%clk 0:00:48]} 24... fxe6 {[%clk
0:00:02.5]} 25. Rxf8+ {[%clk 0:00:48.1]} 25... Rxf8 {[%clk 0:00:03.3]} 26. Rxf8+
{[%clk 0:00:47.6]} 26... Kxf8 {[%clk 0:00:04.2]} 27. Qc3 {[%clk 0:00:47.8]}
27... Qd6 {[%clk 0:00:02.9]} 28. Qd3 {[%clk 0:00:45.3]} 28... Qc5+ {[%clk
0:00:01.8]} 29. Kg2 {[%clk 0:00:44.9]} 29... Be3 {[%clk 0:00:02.1]} 30. Qd8+
{[%clk 0:00:39]} 30... Kf7 {[%clk 0:00:02]} 31. Qc7+ {[%clk 0:00:39.5]} 31...
Kf6 {[%clk 0:00:01.4]} 32. c4 {[%clk 0:00:35.9]} 32... Bg1 {[%clk 0:00:01]} 33.
Kh3 {[%clk 0:00:36.2]} 33... Qe3 {[%clk 0:00:01]} 34. Qxe5+ {[%clk 0:00:35.5]}
34... Ke7 {[%clk 0:00:01.5]} 35. Qc7+ {[%clk 0:00:34.4]} 35... Ke8 {[%clk
0:00:01.5]} 36. Qxc6+ {[%clk 0:00:33.6]} 36... Ke7 {[%clk 0:00:01.3]} 37. Qc7+
{[%clk 0:00:33.6]} 37... Ke8 {[%clk 0:00:01.9]} 38. Qc8+ {[%clk 0:00:32.8]}
38... Ke7 {[%clk 0:00:02.2]} 39. Ba3+ {[%clk 0:00:32.6]} 39... Kf7 {[%clk
0:00:02.2]} 40. Qd7+ {[%clk 0:00:30.8]} 40... Kg6 {[%clk 0:00:01.5]} 41. Qxe6+
{[%clk 0:00:24.8]} 41... Kh5 {[%clk 0:00:02.1]} 42. Qg4+ {[%clk 0:00:19.3]}
42... Kh6 {[%clk 0:00:02.1]} 43. Qf4+ {[%clk 0:00:18]} 43... Qxf4 {[%clk
0:00:02.4]} 44. gxf4 {[%clk 0:00:18.9]} 44... Bc5 {[%clk 0:00:02.1]} 45. Bxc5
{[%clk 0:00:17.6]} 45... Kh5 {[%clk 0:00:01.7]} 46. Bb6 {[%clk 0:00:16.2]} 46...
h6 {[%clk 0:00:01.5]} 47. c5 {[%clk 0:00:16.1]} 47... g6 {[%clk 0:00:02]} 48. c6
{[%clk 0:00:15.8]} 48... g5 {[%clk 0:00:01.4]} 49. hxg5 {[%clk 0:00:16.1]} 49...
hxg5 {[%clk 0:00:02.3]} 50. fxg5 {[%clk 0:00:16.4]} 50... Kxg5 {[%clk 0:00:03]}
51. c7 {[%clk 0:00:16.8]} 1-0

[Event "Late-Titled-Tuesday-Blitz-May-28-2024"]
[Site "Chess.com"]
[Date "2024.05.28"]
[Round "6"]
[White "Onthequiet"]
[Black "shirovin"]
[Result "0-1"]
[WhiteElo "2429"]
[BlackElo "2125"]
[TimeControl "180+1"]
[EndTime "15:07:24 PDT"]
[Termination "shirovin won by checkmate"]

1. d4 {[%clk 0:02:53.4]} 1... f5 {[%clk 0:02:59.1]} 2. Nc3 {[%clk 0:02:52.6]}
2... d5 {[%clk 0:02:51.5]} 3. Bg5 {[%clk 0:02:39.4]} 3... Nf6 {[%clk 0:02:50.7]}
4. Bxf6 {[%clk 0:02:39.4]} 4... exf6 {[%clk 0:02:51.3]} 5. e3 {[%clk 0:02:39.9]}
5... c6 {[%clk 0:02:47.9]} 6. a3 {[%clk 0:02:38.2]} 6... Bd6 {[%clk 0:02:48.1]}
7. Nge2 {[%clk 0:02:37.5]} 7... O-O {[%clk 0:02:47.3]} 8. g3 {[%clk 0:02:37.6]}
8... Na6 {[%clk 0:02:44.9]} 9. Nf4 {[%clk 0:02:33.3]} 9... Nc7 {[%clk
0:02:43.4]} 10. Bd3 {[%clk 0:02:33.2]} 10... a5 {[%clk 0:02:34.9]} 11. Qh5
{[%clk 0:02:32.7]} 11... Qe8 {[%clk 0:02:16.2]} 12. Qxe8 {[%clk 0:02:27]} 12...
Rxe8 {[%clk 0:02:12.9]} 13. O-O-O {[%clk 0:02:23.2]} 13... b5 {[%clk 0:01:59.8]}
14. h4 {[%clk 0:02:21.7]} 14... b4 {[%clk 0:01:58.9]} 15. Nb1 {[%clk 0:02:22]}
15... Rb8 {[%clk 0:01:54]} 16. a4 {[%clk 0:02:20]} 16... Ba6 {[%clk 0:01:37]}
17. Bxa6 {[%clk 0:02:08.7]} 17... Nxa6 {[%clk 0:01:35.6]} 18. Nd2 {[%clk
0:02:09.6]} 18... Bxf4 {[%clk 0:01:33.3]} 19. gxf4 {[%clk 0:02:10.5]} 19... c5
{[%clk 0:01:33.5]} 20. Nb3 {[%clk 0:02:09.8]} 20... c4 {[%clk 0:01:13.8]} 21.
Nxa5 {[%clk 0:02:08.5]} 21... Nc7 {[%clk 0:00:56.9]} 22. Kd2 {[%clk 0:02:00.7]}
22... Re6 {[%clk 0:00:55.3]} 23. b3 {[%clk 0:01:47.5]} 23... c3+ {[%clk
0:00:54.2]} 24. Kd3 {[%clk 0:01:45]} 24... Ra6 {[%clk 0:00:54.7]} 25. Nc4 {[%clk
0:01:44.3]} 25... dxc4+ {[%clk 0:00:54.3]} 26. bxc4 {[%clk 0:01:45.2]} 26...
Rxa4 {[%clk 0:00:53.1]} 27. Ra1 {[%clk 0:01:45.2]} 27... Rba8 {[%clk 0:00:51.8]}
28. Rxa4 {[%clk 0:01:45.1]} 28... Rxa4 {[%clk 0:00:51.3]} 29. d5 {[%clk
0:01:45.4]} 29... Ra2 {[%clk 0:00:43.4]} 30. Rb1 {[%clk 0:01:42.8]} 30... Rb2
{[%clk 0:00:41.3]} 31. Ra1 {[%clk 0:01:41.4]} 31... h5 {[%clk 0:00:34.3]} 32.
Ra7 {[%clk 0:01:36.3]} 32... Ne8 {[%clk 0:00:33.1]} 33. c5 {[%clk 0:01:35.9]}
33... b3 {[%clk 0:00:27.3]} 34. Kxc3 {[%clk 0:01:33.9]} 34... Rxc2+ {[%clk
0:00:26.1]} 35. Kxb3 {[%clk 0:01:33.7]} 35... Rxc5 {[%clk 0:00:26]} 36. Rd7
{[%clk 0:01:28.8]} 36... Kf8 {[%clk 0:00:23.9]} 37. Kb4 {[%clk 0:01:28.4]} 37...
Rc1 {[%clk 0:00:20.9]} 38. f3 {[%clk 0:01:27.7]} 38... g6 {[%clk 0:00:16.3]} 39.
e4 {[%clk 0:01:27.1]} 39... fxe4 {[%clk 0:00:14.7]} 40. fxe4 {[%clk 0:01:28]}
40... Re1 {[%clk 0:00:14.5]} 41. e5 {[%clk 0:01:27.4]} 41... fxe5 {[%clk
0:00:13.6]} 42. fxe5 {[%clk 0:01:28.3]} 42... Rxe5 {[%clk 0:00:13.1]} 43. Kc5
{[%clk 0:01:29.2]} 43... Re4 {[%clk 0:00:11.8]} 44. Kc6 {[%clk 0:01:25.6]} 44...
Rxh4 {[%clk 0:00:11]} 45. Ra7 {[%clk 0:01:26.5]} 45... Rf4 {[%clk 0:00:09.8]}
46. Rh7 {[%clk 0:01:20.2]} 46... Rf7 {[%clk 0:00:08.4]} 47. Rh8+ {[%clk
0:01:18.8]} 47... Ke7 {[%clk 0:00:08.6]} 48. Rg8 {[%clk 0:01:16.3]} 48... Rg7
{[%clk 0:00:07.9]} 49. Rh8 {[%clk 0:01:16.5]} 49... Nf6 {[%clk 0:00:06]} 50. d6+
{[%clk 0:01:16]} 50... Ke6 {[%clk 0:00:06.1]} 51. Ra8 {[%clk 0:01:14.1]} 51...
Rd7 {[%clk 0:00:04.9]} 52. Ra1 {[%clk 0:01:08.6]} 52... Rxd6+ {[%clk 0:00:05.5]}
53. Kc5 {[%clk 0:01:09.4]} 53... Rd5+ {[%clk 0:00:05.2]} 54. Kc6 {[%clk
0:01:09.3]} 54... Re5 {[%clk 0:00:05.5]} 55. Rg1 {[%clk 0:01:06.1]} 55... g5
{[%clk 0:00:05.5]} 56. Rh1 {[%clk 0:01:06.3]} 56... g4 {[%clk 0:00:05.6]} 57.
Ra1 {[%clk 0:01:06.6]} 57... Kf5 {[%clk 0:00:05.9]} 58. Kd6 {[%clk 0:01:06.2]}
58... g3 {[%clk 0:00:06.3]} 59. Rg1 {[%clk 0:01:05.5]} 59... Re3 {[%clk
0:00:05.3]} 60. Kc5 {[%clk 0:01:04.5]} 60... Ne4+ {[%clk 0:00:05.7]} 61. Kd4
{[%clk 0:01:04.4]} 61... Re2 {[%clk 0:00:06]} 62. Rh1 {[%clk 0:01:03.7]} 62...
g2 {[%clk 0:00:06.3]} 63. Rxh5+ {[%clk 0:01:03.8]} 63... Kf4 {[%clk 0:00:06.8]}
64. Rh8 {[%clk 0:01:02.2]} 64... g1=Q+ {[%clk 0:00:05.9]} 65. Kd5 {[%clk
0:01:01.5]} 65... Qd1+ {[%clk 0:00:06.4]} 66. Ke6 {[%clk 0:01:01.6]} 66... Rc2
{[%clk 0:00:07]} 67. Rf8+ {[%clk 0:01:02.5]} 67... Ke3 {[%clk 0:00:06.4]} 68.
Rh8 {[%clk 0:01:00.7]} 68... Qd6+ {[%clk 0:00:07]} 69. Kf7 {[%clk 0:01:00.8]}
69... Rc7+ {[%clk 0:00:06.2]} 70. Kg8 {[%clk 0:01:01]} 70... Qd8# {[%clk
0:00:06.8]} 0-1